[Event "FIDE WSTC Open 50 2025"]
[Site "Prague"]
[Date "2025.02.18"]
[Round "2.17"]
[White "Kazhgaleyev, Murtas"]
[Black "Plotkin, Victor"]
[Result "1-0"]
[Annotator "TA"]
[ECO "A05"]
[WhiteElo "2495"]
[BlackElo "2259"]
[PlyCount "115"]
[EventDate "2025.02.17"]
[EventType "team-tourn"]
[EventCountry "CZE"]
[SourceTitle "playchess.com"]
[Source "ChessBase"]
[SourceQuality "1"]
[TimeControl "40/5400+30:1800+30"]

{[%evp 14,115,34,19,15,17,39,25,25,17,44,27,25,25,33,38,50,46,58,64,41,52,50,43,73,63,97,57,77,15,12,19,82,75,89,72,68,26,26,39,29,28,27,27,67,72,68,50,50,19,116,59,58,54,78,80,161,157,476,452,416,327,318,307,318,328,320,318,310,288,223,223,223,223,223,0,222,222,223,223,594,574,563,533,1191,781,6354,6575,6179,6179,5101,1627,1536,769,6225,6219,29981,29982,29983,29980,29985,29986,29987,29987]} 1. Nf3 {[%emt 0:00:03]} Nf6 {[%emt 0:00:09]} 2. g3 {[%emt 0:03:29]} d5 {[%emt 0:00:40]} 3. Bg2 {[%emt 0:00:06]} c6 {[%emt 0:01:14]} 4. O-O {[%emt 0:00:49]} g6 {[%emt 0:00:36]} 5. b3 {[%emt 0:03:15]} Bg7 {[%emt 0:00:16]} 6. Bb2 {[%emt 0:00:05]} O-O {[%emt 0:00:14]} 7. c4 $1 {[%emt 0:00:09] The main line 7.c4 scores better than 7.d3.} Bg4 {[%emt 0:06:42]} 8. d3 {[%emt 0:01:31]} Re8 {[%emt 0:11:22] A11: English Opening: 1...c6.} 9. Nbd2 {[%emt 0:01:07]} Na6 {[%emt 0:05:28]} 10. h3 {[%emt 0:00:37]} Bxf3 $146 {[%emt 0:01:04] White has an edge.} (10... Bd7 11. a3 Qc8 12. Kh2 Ng4+ 13. hxg4 Bxb2 14. Ra2 Bg7 15. g5 Nc7 16. e3 e5 {1-0 Lainburg,V (2190)-Toubartz,H (1734) Bad Woerishofen Nestors op 27th 2011 (9)}) 11. Nxf3 {[%emt 0:02:14]} Qd6 {[%emt 0:02:25]} 12. a3 {[%emt 0:08:31]} e5 {[%emt 0:04:05]} 13. cxd5 {[%emt 0:01:30]} cxd5 {[%emt 0:02:20]} 14. b4 {[%emt 0:00:32]} Rac8 {[%emt 0:02:02]} 15. Qb3 {[%emt 0:02:17]} e4 {[%emt 0:07:39]} 16. dxe4 {[%emt 0:06:18]} Nxe4 {[%emt 0:00:44]} 17. Bxg7 {[%emt 0:01:39]} Kxg7 {[%emt 0:00:14]} 18. Rac1 {[%emt 0:01:36]} Kg8 {[%emt 0:05:16]} 19. e3 {[%emt 0:03:51]} Nc7 {[%emt 0:07:29]} 20. Qd3 {[%emt 0:07:48] Repels Nb5} Rcd8 {[%emt 0:05:59]} 21. Nd2 {[%emt 0:07:28]} (21. Rfd1 $16) 21... Nxd2 $11 {[%emt 0:01:20]} 22. Qxd2 {[%emt 0:01:37]} Re7 {[%emt 0:02:45]} (22... Ne6 $1 $11) 23. Rfd1 $16 {[%emt 0:01:55][%cal Bf1d1,Bd1d3,Bd3e3,Be3e7][%mdl 32]} Red7 {[%emt 0:01:28]} 24. Qb2 $36 {[%emt 0:04:56][%mdl 2048] White attacks White is really pushing.} Qe7 {[%emt 0:02:36]} 25. Rd3 {[%emt 0:01:22]} Ne6 {[%emt 0:03:24]} 26. h4 {[%emt 0:09:47]} d4 {[%emt 0:01:24]} 27. Re1 {[%emt 0:02:19]} (27. Bh3 {is more complex.} dxe3 28. Rxe3 Rd1+ 29. Kg2) 27... dxe3 {[%emt 0:00:59]} 28. Rdxe3 {[%emt 0:00:11]} Qf8 {[%emt 0:05:05]} 29. Bh3 {[%emt 0:07:43]} Rd2 {[%emt 0:01:30]} 30. Qf6 {[%emt 0:04:00]} (30. Qc3 $5 Nd4 31. Re4 $11 (31. Qxd2 Nf3+ 32. Rxf3 Rxd2 $11)) 30... Nc7 {[%emt 0:05:34]} 31. Bg2 {[%emt 0:00:45]} Nd5 {[%emt 0:05:41] [#]} (31... b6 $1 $11 {remains equal.}) 32. Bxd5 {[%emt 0:04:19]} ({White should play} 32. Qxd8 $1 $16 {Intending Re8 and mate.} Qxd8 33. Re8+ Qxe8 34. Rxe8+ Kg7 35. Ra8) 32... R2xd5 $14 {[%emt 0:00:12]} 33. Re7 {[%emt 0:00:16]} R5d7 {[%emt 0:01:42]} 34. h5 {[%emt 0:01:31][%cal Bh4h5,Bh5h6][%mdl 32] White has more active pieces.} Rxe7 {[%emt 0:03:34]} (34... gxh5 $16 35. Qg5+ Kh8) 35. Rxe7 $16 {[%emt 0:00:09][%mdl 4096] Endgame KQR-KQR} Rb8 $2 {[%emt 0:02:45] [#]} (35... Qg7 $16 36. Qf4 (36. Qxg7+ Kxg7 37. Rxb7 a5 $16) 36... gxh5 37. Rxb7 h4 38. Qxh4 (38. Rxa7 hxg3 39. Qxg3 Kf8 $16) 38... Rd1+ 39. Kg2 Qg6) 36. h6 $1 $18 {[%emt 0:01:34][%mdl 512]} a6 {[%emt 0:00:58]} 37. Qf4 {[%emt 0:04:09]} Qxe7 {[%emt 0:01:10]} 38. Qxb8+ {[%emt 0:00:21] KQ-KQ} Qf8 {[%emt 0:00:02]} 39. Qxb7 {[%emt 0:00:17]} Qxh6 {[%emt 0:00:11]} 40. Qxa6 {[%emt 0:00:19]} Qc1+ {[%emt 0:00:13]} 41. Kg2 {[%emt 0:30:07]} h5 {[%emt 0:30:23]} 42. Qd3 {[%emt 0:02:08] Against Qd1} Qc6+ {[%emt 0:00:00]} 43. Kh2 {[%emt 0:00:00]} Qf6 {[%emt 0:00:00]} 44. Kg2 {[%emt 0:00:00]} Qc6+ {[%emt 0:00:00]} 45. Kg1 {[%emt 0:00:00]} Qc1+ {[%emt 0:00:00] [#]} 46. Kh2 $1 {[%emt 0:00:00]} f5 $2 {[%emt 0:00:00]} (46... h4 {is tougher.} 47. gxh4 Qf4+ 48. Qg3 Qf5) 47. b5 {[%emt 0:00:00]} Qc5 {[%emt 0:00:00]} 48. Kg2 {[%emt 0:00:00]} Kh7 {[%emt 0:00:00]} 49. Qb3 {[%emt 0:00:00]} Qb6 {[%emt 0:00:00]} 50. Qf7+ {[%emt 0:00:00]} Kh6 {[%emt 0:00:00]} 51. Qf8+ {[%emt 0:00:00]} Kh7 {[%emt 0:00:00]} 52. Qe7+ {[%emt 0:00:00]} Kg8 {[%emt 0:00:00]} 53. a4 {[%emt 0:00:00] Qe8+ would now be deadly.} Qd4 {[%emt 0:00:00]} 54. Qe6+ {[%emt 0:00:00]} Kg7 {[%emt 0:00:00]} 55. b6 {[%emt 0:00:00][%cal Bb5b6,Bb6b7][%mdl 32] White mates.} Qxa4 {[%emt 0:00:00]} 56. Qe5+ {[%emt 0:00:00]} Kh7 {[%emt 0:00:00]} 57. Qc7+ {[%emt 0:00:00]} Kg8 {[%emt 0:00:00]} 58. b7 {[%emt 0:00:00] Weighted Error Value: White=0.29 (precise) /Black=0.72  Loses game:     	---       	Black=1      Mistake:       	White=2     	Black=4      Inaccurate:     	White=4     	Black=6      OK:         	White=17    	Black=11     Best:        	White=1     	Black=6      Strong:       	White=1     	---        Brilliant:      	White=1     	---} 1-0

[Event "FIDE WSTC Open 50 2025"]
[Site "Prague"]
[Date "2025.02.18"]
[Round "2.18"]
[White "Cummings, David H."]
[Black "Temirbayev, Serikbay"]
[Result "0-1"]
[Annotator "TA"]
[ECO "A16"]
[WhiteElo "2255"]
[BlackElo "2372"]
[PlyCount "92"]
[EventDate "2025.02.17"]
[EventType "team-tourn"]
[EventCountry "CZE"]
[SourceTitle "playchess.com"]
[Source "ChessBase"]
[SourceQuality "1"]
[TimeControl "40/5400+30:1800+30"]

{[%evp 14,92,35,30,37,31,44,36,54,60,75,69,77,69,82,77,144,133,152,73,65,59,75,0,13,25,0,0,0,23,58,49,56,52,95,74,136,156,203,218,229,154,289,166,306,282,285,269,302,160,183,157,153,116,162,97,102,-184,-195,-389,-395,-519,-569,-695,-689,-880,-884,-842,-871,-861,-877,-820,-884,-1124,-1108,-1141,-1124,-1161,-1145,-1122,-1114]} 1. c4 {[%emt 0:00:10]} Nf6 {[%emt 0:00:17]} 2. Nc3 {[%emt 0:00:14]} g6 {[%emt 0:00:33]} 3. Nf3 {[%emt 0:00:33]} Bg7 {[%emt 0:00:22]} 4. e4 {[%emt 0:00:16]} d6 {[%emt 0:00:15]} 5. d4 {[%emt 0:00:06]} O-O {[%emt 0:00:22]} 6. Bd3 {[%emt 0:00:26]} e5 {[%emt 0:05:11]} 7. d5 {[%emt 0:00:22]} a5 {[%emt 0:01:37]} 8. O-O {[%emt 0:00:29]} Na6 {[%emt 0:09:59] E90: King's Indian: Classical: Early deviations and 6 h3.} 9. a3 {[%emt 0:01:00]} Bd7 {[%emt 0:03:39]} 10. Bc2 {[%emt 0:04:59]} Nh5 {[%emt 0:04:53] White is slightly better.} 11. Rb1 {[%emt 0:02:23]} h6 {[%emt 0:08:54]} 12. Kh1 {[%emt 0:10:34]} Qe8 {[%emt 0:01:32]} 13. b4 {[%emt 0:07:32]} axb4 {[%emt 0:00:29]} 14. axb4 {[%emt 0:00:04]} f5 $146 {[%emt 0:00:36]} (14... Qe7 $142) (14... c5 15. dxc6 bxc6 16. b5 cxb5 17. cxb5 Rc8 18. bxa6 Rxc3 19. a7 Qa8 20. Be3 Rxe3 21. fxe3 Qxa7 22. Qxd6 {1-0 Ciolek,A (2166)-Seker,B (1907) Bratislava exe op 2nd 2024 (4)}) 15. exf5 $16 {[%emt 0:05:40]} gxf5 {[%emt 0:00:22]} 16. Re1 {[%emt 0:20:31]} (16. Nh4 $142) 16... Nf6 {[%emt 0:02:40]} 17. h3 {[%emt 0:10:00] Repels Ng4} Qh5 {[%emt 0:10:12]} 18. Nh2 {[%emt 0:09:18]} (18. Rb3 $16) 18... Qh4 $1 $11 {[%emt 0:04:18][%csl LRc4,LRf2]} 19. Qe2 {[%emt 0:01:10]} e4 {[%emt 0:00:20] Repels Nf3} 20. Bd2 {[%emt 0:03:00]} Rae8 {[%emt 0:01:03]} 21. Qf1 {[%emt 0:00:44]} Nh7 {[%emt 0:03:38]} 22. g3 {[%emt 0:02:39]} Qf6 {[%emt 0:09:38]} 23. Ne2 {[%emt 0:00:45]} Ng5 {[%emt 0:00:53]} 24. Nf4 {[%emt 0:04:49]} Bh8 {[%emt 0:04:36]} ({Better is} 24... c6) 25. Qe2 {[%emt 0:02:00]} Nf7 {[%emt 0:03:29]} (25... c6 $16 26. dxc6 bxc6) 26. Rg1 $18 {[%emt 0:03:57]} Ne5 {[%emt 0:03:48]} 27. Bc3 {[%emt 0:02:47]} Kf7 {[%emt 0:03:49]} (27... Qf7 $16) 28. Bb3 {[%emt 0:01:10]} (28. Qh5+ $142 Kg7 29. g4 (29. f3 Qg5 $16)) 28... Ke7 {[%emt 0:01:39]} (28... Kg8 $142 29. g4 Kh7) 29. c5 {[%emt 0:00:27][%cal Bc4c5,Bc5c6][%mdl 32] Bxe5 is the strong threat.} Qf7 {[%emt 0:05:18] [#]} 30. c6 $1 {[%emt 0:01:29][%mdl 512]} Bc8 {[%emt 0:00:08]} 31. Ne6 {[%emt 0:02:01]} (31. Bd2 $18) 31... Nd3 $16 {[%emt 0:00:50] White has space advantage and is better} 32. Bxh8 {[%emt 0:00:21]} Rxh8 {[%emt 0:00:11]} 33. cxb7 {[%emt 0:02:00]} Bxb7 {[%emt 0:00:12]} 34. Bc4 {[%emt 0:00:52]} ({White should try} 34. f3 $18) 34... Naxb4 {[%emt 0:00:39] [#]} 35. Rxb4 $4 {[%emt 0:00:38][%mdl 8192] This costs White the game.} Nxb4 $19 {[%emt 0:00:06]} 36. Rb1 $2 {[%emt 0:00:18]} (36. Rd1 {is a better defense.} Bxd5 37. Rxd5 Qxe6 (37... Kxe6 $2 {too greedy.} 38. Rxf5+ Kxf5 39. Bxf7 $18) 38. Rb5) 36... Bxd5 {[%emt 0:00:13]} (36... Nxd5 37. Nxc7 Rb8 38. Rxb7 Rxb7 39. Nxd5+ (39. Bxd5 Rb1+ 40. Kg2 Qf6 $18) 39... Kf8 40. Ba2 $16) 37. Bxd5 {[%emt 0:01:29]} Nxd5 {[%emt 0:00:04] Black is clearly winning.} 38. Nd4 {[%emt 0:00:04]} Nc3 {[%emt 0:01:24][%csl LRb1,LRe2]} 39. Qb2 {[%emt 0:01:24]} Nxb1 {[%emt 0:00:16]} 40. Nc6+ {[%emt 0:00:04]} Kd7 {[%emt 0:01:20]} 41. Qb5 {[%emt 0:30:44] [#]} Ke6 $1 {[%emt 0:37:05]} 42. Qxb1 {[%emt 0:00:00]} Kf6 {[%emt 0:00:00] Strongly threatening ...Qc4.} 43. Nf1 {[%emt 0:00:00]} Qc4 {[%emt 0:00:00]} 44. Qa1+ {[%emt 0:00:00]} Kg6 {[%emt 0:00:00]} 45. Nd4 {[%emt 0:00:00]} Ra8 {[%emt 0:00:00]} 46. Qd1 {[%emt 0:00:00]} Qd3 {[%emt 0:00:00] Weighted Error Value: White=0.59/Black=0.21 (precise)   Loses game:     	White=1     	---        Mistake:       	White=6     	Black=5      Inaccurate:     	White=2     	Black=3      OK:         	White=15    	Black=8      Best:        	White=1     	Black=3      Strong:       	---       	Black=1} 0-1

[Event "FIDE WSTC Open 50 2025"]
[Site "Prague"]
[Date "2025.02.18"]
[Round "2.19"]
[White "Tikzhanov, Yerlan"]
[Black "Barron, Michael"]
[Result "1-0"]
[Annotator "TA"]
[ECO "C50"]
[WhiteElo "2323"]
[BlackElo "2049"]
[PlyCount "55"]
[EventDate "2025.02.17"]
[EventType "team-tourn"]
[EventCountry "CZE"]
[SourceTitle "playchess.com"]
[Source "ChessBase"]
[SourceQuality "1"]
[TimeControl "40/5400+30:1800+30"]

{[%evp 9,55,16,28,10,28,29,37,29,39,20,29,27,37,0,0,0,0,0,0,0,0,-16,-14,-24,-18,-48,-8,-172,-193,-277,-267,-268,93,112,539,434,436,416,430,418,606,616,586,556,1380,1335,1301,1279]} 1. e4 {[%emt 0:00:06]} e5 {[%emt 0:00:02]} 2. Nf3 {[%emt 0:00:08]} Nc6 {[%emt 0:00:02]} 3. Bc4 {[%emt 0:00:17]} Bc5 {[%emt 0:00:02]} 4. O-O {[%emt 0:00:30]} Nf6 {[%emt 0:00:39]} 5. d3 {[%emt 0:00:15]} O-O {[%emt 0:01:32]} 6. Nbd2 {[%emt 0:01:28] C50: Hungarian Defence and Giuoco Pianissimo.} d5 {[%emt 0:04:04]} 7. exd5 {[%emt 0:00:50]} Nxd5 {[%emt 0:00:03]} 8. Re1 {[%emt 0:00:52] White is slightly better.} f6 {[%emt 0:04:39] 8...Nf6 is the modern continuation.} 9. Ne4 {[%emt 0:03:02]} Bb6 {[%emt 0:00:33]} 10. c3 {[%emt 0:12:32]} Kh8 {[%emt 0:01:02]} 11. a4 {[%emt 0:05:48]} Bg4 {[%emt 0:05:32]} 12. h3 {[%emt 0:00:43]} Bh5 {[%emt 0:00:34]} 13. Ng3 {[%emt 0:01:22]} Bf7 {[%emt 0:03:43]} 14. Qc2 $146 {[%emt 0:02:18]} (14. Bd2 a5 15. Nh4 Qd7 16. Qg4 Qxg4 17. hxg4 Rad8 18. Nf3 h6 19. Rad1 Ba7 20. Ne4 {0-1 Delchev,A (2617)-Van Foreest,J (2472) Basel op 2015 (3)}) 14... a5 {[%emt 0:02:06]} 15. b3 {[%emt 0:07:12]} Qd7 {[%emt 0:06:13]} 16. Ba3 {[%emt 0:01:45]} Rfe8 {[%emt 0:00:24]} 17. Ne4 {[%emt 0:02:19]} Nf4 {[%emt 0:05:08]} 18. Rad1 $2 {[%emt 0:00:16]} (18. Bxf7 $11 {and White stays safe.} Qxf7 19. Bc1) 18... Bh5 $19 {[%emt 0:01:15] And now ...Bxf3 would win.} 19. Nh4 {[%emt 0:06:53]} (19. Nh2 $142) 19... Nxh3+ {[%emt 0:02:33]} (19... Bxd1 20. Qxd1 Ne7 21. Qf3 $15) 20. Kh2 {[%emt 0:02:22][%cal Bg1h2,Bh2h3,Bh3g2][%mdl 32]} (20. gxh3 $2 {loses.} Qxh3 21. Bd5 Rad8 (21... Qxh4 $2 22. Kg2 $19) (21... Bxd1 22. Qxd1 Qxh4 23. Kg2 $19) 22. Bxc6 bxc6 $19) 20... Qg4 {[%emt 0:00:44] [#]} (20... Bxd1 $19 21. Rxd1 Qg4 22. gxh3 Qf4+ (22... Qxh4 $2 23. Rg1 $19) 23. Kg2 Qxh4) 21. f3 $1 $16 {[%emt 0:02:42] Really sharp!} Qf4+ {[%emt 0:05:45][%mdl 8192]} (21... Qxh4 $16 {is a better chance.} 22. g3 Qg5 23. Nxg5 Nxg5) 22. g3 {[%emt 0:01:28]} Qh6 {[%emt 0:00:07]} 23. Kxh3 {[%emt 0:00:17]} Bxf3 {[%emt 0:00:20][%cal Oh6h5]} 24. Rf1 {[%emt 0:03:18]} Bxd1 {[%emt 0:12:40]} (24... Bxe4 $142 25. dxe4 Rad8) 25. Qxd1 $18 {[%emt 0:00:14] White is clearly winning.} Ne7 {[%emt 0:01:41]} 26. Kg2 {[%emt 0:01:35] [#] Bxe7 would now be deadly.} Rad8 {[%emt 0:05:57]} 27. Bxe7 {[%emt 0:00:48]} Rxe7 {[%emt 0:04:00]} 28. Nf5 {[%emt 0:00:25][%csl LRe7,LRh6] Weighted Error Value: White=0.27 (precise) /Black=0.85  Loses game:     	White=1     	Black=1      Missed win:     	---       	Black=1      Mistake:       	White=1     	Black=1      Inaccurate:     	White=2     	Black=1      OK:         	White=6     	Black=11     Best:        	White=2     	Black=1      Strong:       	White=1     	---} 1-0

[Event "FIDE WSTC Open 50 2025"]
[Site "Prague"]
[Date "2025.02.18"]
[Round "2.20"]
[White "Findlay, Ian T."]
[Black "Min, Valeriy"]
[Result "0-1"]
[Annotator "TA"]
[ECO "C63"]
[WhiteElo "2089"]
[BlackElo "2273"]
[PlyCount "88"]
[EventDate "2025.02.17"]
[EventType "team-tourn"]
[EventCountry "CZE"]
[SourceTitle "playchess.com"]
[Source "ChessBase"]
[SourceQuality "1"]
[TimeControl "40/5400+30:1800+30"]

{[%evp 12,88,36,31,33,33,28,0,0,0,0,0,0,-29,-33,-27,-21,-40,-34,-37,-29,-28,-27,-36,43,-16,-17,-14,-9,-16,-9,-9,-9,-9,-9,-9,-10,-75,-15,-77,-77,-77,-77,-77,-77,-292,-77,-77,-77,-77,0,-85,-85,-88,-91,-91,-76,-76,-76,-76,-76,-76,-76,-77,-54,-112,-123,-591,-584,-543,-488,-534,-534,-668,-648,-620,-587,-1783,-1505]} 1. e4 {[%emt 0:00:03]} e5 {[%emt 0:00:23]} 2. Nf3 {[%emt 0:00:08]} Nc6 {[%emt 0:00:06]} 3. Bb5 {[%emt 0:00:07]} f5 {[%emt 0:00:26]} 4. d3 {[%emt 0:00:25]} fxe4 {[%emt 0:00:22]} 5. dxe4 {[%emt 0:00:08]} Nf6 {[%emt 0:00:05]} 6. O-O {[%emt 0:00:12]} Bc5 {[%emt 0:01:41]} 7. Qe2 {[%emt 0:06:56]} d6 {[%emt 0:04:27] C63: Ruy Lopez: Schliemann/Jaenisch Defence.} 8. Qc4 {[%emt 0:11:21][%cal Of3e5]} Qe7 {[%emt 0:27:32]} 9. Be3 {[%emt 0:01:11]} Bxe3 $146 {[%emt 0:03:03] The position is equal.} ({Predecessor:} 9... Be6 10. Qa4 Bd7 11. Bxc5 dxc5 12. Nc3 Nd4 13. Bxd7+ Nxd7 14. Nxd4 cxd4 15. Nb5 Qc5 {0-1 Karim,I (2288)-Inkiov,V (2523) Paris Multicoms-B 2006 (2)}) 10. Bxc6+ {[%emt 0:00:26]} bxc6 {[%emt 0:00:05]} 11. Qxc6+ {[%emt 0:00:25]} (11. fxe3 Bd7 $15) 11... Qd7 {[%emt 0:00:59]} 12. Qxd7+ {[%emt 0:03:22] A sharp opening} (12. Qxa8 $5 O-O 13. fxe3 $11) 12... Bxd7 {[%emt 0:00:24]} (12... Kxd7 13. fxe3 Nxe4 14. h3 $17) 13. fxe3 {[%emt 0:00:07]} Nxe4 {[%emt 0:00:16]} 14. Nbd2 {[%emt 0:00:10]} Nf6 {[%emt 0:02:10]} 15. c4 {[%emt 0:03:38]} Rb8 {[%emt 0:07:22]} 16. b3 {[%emt 0:00:13]} c5 {[%emt 0:03:33]} 17. Nh4 {[%emt 0:08:02]} Ng4 {[%emt 0:18:05]} (17... a5 $15) 18. Rae1 {[%emt 0:18:29]} (18. Ne4 $14 Ke7 19. Rf3) 18... Rf8 $11 {[%emt 0:03:18]} 19. Rxf8+ {[%emt 0:00:24]} Kxf8 {[%emt 0:00:05]} 20. h3 {[%emt 0:01:11]} Nf6 $36 {[%emt 0:00:34][%mdl 2048] Black has the initiative.} 21. Rf1 {[%emt 0:00:08]} Ke7 {[%emt 0:00:57]} 22. Nf5+ {[%emt 0:00:32]} Bxf5 {[%emt 0:00:15]} 23. Rxf5 {[%emt 0:00:05][%mdl 4096] Endgame KRN-KRN} Ke6 {[%emt 0:00:38]} 24. g4 {[%emt 0:03:57]} (24. Rf1 $11) 24... a5 {[%emt 0:02:12]} ({Black should try} 24... h5 $1 $17 25. Rf3 hxg4 26. hxg4 e4 (26... Nxg4 27. Rg3 $11)) 25. a4 {[%emt 0:03:43] [#]} (25. Rf1 $11) 25... h5 $1 $17 {[%emt 0:02:35]} 26. Rg5 {[%emt 0:07:57]} hxg4 {[%emt 0:01:15]} 27. Rxg7 {[%emt 0:00:25]} gxh3 {[%emt 0:00:11]} 28. Kh2 $2 {[%emt 0:00:09]} (28. Rg3 $17) 28... Rh8 $2 {[%emt 0:00:52]} (28... Kf5 $1 $19 {and Black stays clearly on top. And now ...Ne4 would win.} 29. Kxh3 Ne4) 29. Rg3 {[%emt 0:04:41]} Kf5 {[%emt 0:02:14]} 30. Rf3+ {[%emt 0:00:06]} Ke6 {[%emt 0:01:08]} 31. Rg3 {[%emt 0:00:18] Dodges Ng4+} Rh6 {[%emt 0:02:22]} 32. e4 {[%emt 0:00:59] [#]} Rh4 $1 {[%emt 0:01:20]} 33. Rxh3 {[%emt 0:00:22]} Rf4 {[%emt 0:00:21] Black is more active.} 34. Kg3 {[%emt 0:01:26] Prevents Rf2} Nxe4+ {[%emt 0:00:18]} 35. Nxe4 {[%emt 0:00:06]} Rxe4 {[%emt 0:00:03] KR-KR. Black is a pawn up.} 36. Kf3 {[%emt 0:04:05] Wards off Re3+} Rf4+ {[%emt 0:02:18]} 37. Ke3 {[%emt 0:00:08]} Rg4 {[%emt 0:00:45]} 38. Kf3 {[%emt 0:03:37]} ({White should try} 38. Rh6+ $15 Ke7 39. Kf3 Rf4+ 40. Ke3) 38... Kf5 {[%emt 0:01:29]} 39. Rh8 $2 {[%emt 0:01:30][%mdl 8192] [#]} (39. Ke3 $17 {nothing else works.}) 39... e4+ $1 $19 {[%emt 0:01:29] Black is clearly winning.} 40. Kf2 {[%emt 0:00:06]} Rg6 {[%emt 0:01:44]} 41. Re8 {[%emt 0:38:09]} Kf4 {[%emt 0:31:01][%cal Oe4e3]} 42. Re7 {[%emt 0:00:43] [#]} e3+ $1 {[%emt 0:00:53][%mdl 512]} 43. Ke2 {[%emt 0:00:19][%cal Oe2d3]} Rg2+ {[%emt 0:00:17]} 44. Kd3 {[%emt 0:00:06]} Rd2+ {[%emt 0:00:26] Weighted Error Value: White=0.52/Black=0.18 (very precise)   Loses game:     	White=2     	---        Missed win:     	---       	Black=1      Mistake:       	White=4     	Black=2      Inaccurate:     	White=2     	---        OK:         	White=14    	Black=12     Best:        	White=5     	Black=4      Strong:       	---       	Black=2      Brilliant:      	---       	Black=1} 0-1

[Event "FIDE WSTC Open 50 2025"]
[Site "Prague"]
[Date "2025.02.18"]
[Round "2.21"]
[White "Bryson, Douglas M"]
[Black "Ftacnik, Lubomir"]
[Result "1/2-1/2"]
[Annotator "TA"]
[ECO "B81"]
[WhiteElo "2295"]
[BlackElo "2438"]
[PlyCount "65"]
[EventDate "2025.02.17"]
[EventType "team-tourn"]
[EventCountry "CZE"]
[SourceTitle "playchess.com"]
[Source "ChessBase"]
[SourceQuality "1"]
[TimeControl "40/5400+30:1800+30"]

{[%evp 21,65,25,19,17,10,-18,-11,-45,-45,-48,-42,-92,0,0,20,23,29,19,26,12,48,58,43,31,46,33,43,30,46,25,100,41,52,22,18,10,18,15,11,0,13,0,15,0,15,0]} 1. e4 {[%emt 0:00:07]} c5 {[%emt 0:00:09]} 2. Nf3 {[%emt 0:00:18]} d6 {[%emt 0:00:09]} 3. d4 {[%emt 0:00:25]} cxd4 {[%emt 0:00:09]} 4. Nxd4 {[%emt 0:00:15]} Nf6 {[%emt 0:00:10]} 5. Nc3 {[%emt 0:00:09]} e6 {[%emt 0:00:13]} 6. g4 {[%emt 0:01:08]} h6 {[%emt 0:00:21]} 7. h4 {[%emt 0:00:55]} Nc6 {[%emt 0:01:00]} 8. Rg1 {[%emt 0:01:12]} d5 {[%emt 0:00:43]} 9. exd5 {[%emt 0:03:02]} Nxd5 {[%emt 0:00:11]} 10. Nxd5 {[%emt 0:03:02]} exd5 {[%emt 0:00:32]} 11. Bb5 {[%emt 0:09:34]} Bd7 {[%emt 0:01:09]} 12. Qe2+ {[%emt 0:05:30] B81: Sicilian Scheveningen: Keres Attack.} Be7 {[%emt 0:19:05]} 13. Bxc6 {[%emt 0:31:41]} bxc6 {[%emt 0:00:18]} 14. Nf5 {[%emt 0:00:22]} Bxf5 {[%emt 0:10:57]} 15. gxf5 {[%emt 0:00:04]} Kf8 {[%emt 0:01:44]} 16. Be3 {[%emt 0:07:04]} (16. Bf4 $15) 16... Qa5+ {[%emt 0:06:53]} (16... Bxh4 $17 17. O-O-O Bf6) 17. Bd2 $11 {[%emt 0:06:34]} Bb4 {[%emt 0:01:55] [#] and ...Re8 should not be overlooked. A sharp opening} 18. O-O-O $36 {[%emt 0:00:59][%mdl 2048] Strongly threatening Qe5. White has the initiative.} Bxd2+ {[%emt 0:01:06]} 19. Qxd2 {[%emt 0:00:15]} Qxd2+ {[%emt 0:06:32]} ({Don't play} 19... Qxa2 $6 20. Qc3 d4 (20... Qa1+ $2 21. Kd2 $18) 21. Qb4+ (21. Qxd4 Qa1+ 22. Kd2 Qa5+ 23. Ke2 Re8+ 24. Kf1 Rh7 $16) 21... Kg8 22. f6 $16 (22. Qxd4 Qa1+ 23. Kd2 Qa5+ 24. Kc1 Qa1+ 25. Kd2 Qa5+ 26. Kc1 Qa1+ $14)) 20. Rxd2 $146 {[%emt 0:01:01][%mdl 4096] Endgame KRR-KRR} (20. Kxd2 Re8 21. Rde1 Rxe1 22. Rxe1 h5 23. Re5 Rh6 24. Ke3 Rf6 25. b4 g6 26. fxg6 fxg6 27. c3 Kf7 28. a4 Kf8 29. b5 {½-½ Manik,M (2420)-Ftacnik,L (2553) SVK-chT 0708 2007 (4)}) 20... Ke7 {[%emt 0:02:20]} 21. Rxg7 {[%emt 0:01:05]} Kf6 {[%emt 0:02:57]} 22. Rg3 {[%emt 0:02:23]} Rhe8 {[%emt 0:06:45]} 23. Rc3 {[%emt 0:02:55]} Rac8 {[%emt 0:12:51]} 24. Kd1 {[%emt 0:00:29]} Kxf5 {[%emt 0:01:39]} 25. Rd4 {[%emt 0:02:09]} Ke6 {[%emt 0:04:55]} (25... Re4 $11 {remains equal.} 26. Rxe4 Kxe4) 26. Ke2 {[%emt 0:06:33] White is more active.} (26. Re3+ $16 Kd6 27. Rf3) 26... Kd6+ {[%emt 0:02:48]} 27. Kf3 {[%emt 0:00:57]} f5 {[%emt 0:03:37] The position is equal.} 28. Rf4 {[%emt 0:05:04]} Re5 {[%emt 0:04:45]} 29. Ra3 {[%emt 0:00:31]} Rc7 {[%emt 0:00:09]} 30. Rfa4 {[%emt 0:01:47]} Ree7 {[%emt 0:01:56]} 31. Rf4 {[%emt 0:00:16]} Re5 {[%emt 0:00:11]} 32. Rfa4 {[%emt 0:00:05]} Ree7 {[%emt 0:00:04]} 33. Rf4 {Weighted Error Value: White=0.16 (very precise) /Black=0.17 (very precise)   Mistake:       	White=2     	Black=2      Inaccurate:     	White=3     	Black=1      OK:         	White=3     	Black=6      Best:        	White=2     	Black=2} 1/2-1/2